bitfinex/quotes_BTCUSD_20250324
["timestamp","ask_amount","ask_price","bid_price","bid_amount"]
[1742821209549,0.01300657,87490.0,87489.0,1.01657764]
[1742821210040,0.0030802,87490.0,87489.0,1.02800764]
[1742821210295,0.0040802,87490.0,87489.0,1.02800764]
[1742821210537,0.01977719,87490.0,87489.0,1.01657764]
[1742821210983,0.0070802,87490.0,87489.0,1.01657764]
[1742821211243,0.0070802,87490.0,87489.0,0.78797764]
[1742821211244,0.0040802,87490.0,87489.0,0.78797764]
[1742821211490,8.02e-05,87490.0,87489.0,1.01657764]
[1742821211729,0.01281141,87490.0,87489.0,1.01657764]
[1742821211958,0.30638582,87490.0,87489.0,0.78797764]
[1742821212200,0.59365461,87490.0,87489.0,0.67372]
[1742821212424,0.59365461,87490.0,87489.0,0.54404]
[1742821212671,0.59365461,87490.0,87489.0,0.67368]
[1742821212889,0.59665461,87490.0,87489.0,0.67368]
[1742821213098,0.59365461,87490.0,87489.0,0.67368]
[1742821213290,0.59482421,87490.0,87489.0,0.67368]
[1742821213511,0.60719804,87490.0,87489.0,0.67368]
[1742821214437,0.55364963,87490.0,87489.0,0.67368]
[1742821219602,0.55364963,87490.0,87489.0,0.67568]
[1742821220443,0.55364963,87490.0,87489.0,0.13164]
[1742821220643,0.5506642,87490.0,87489.0,0.13164]
[1742821226126,0.5506642,87490.0,87489.0,0.131979]
[1742821226327,0.31354343,87490.0,87489.0,0.24623664]
[1742821226753,0.0011696,87490.0,87489.0,0.48626664]
[1742821227331,0.0001696,87490.0,87489.0,0.48626664]
[1742821227534,0.0011696,87490.0,87489.0,0.48626664]
[1742821229118,0.0011696,87490.0,87489.0,0.60052428]
[1742821230192,0.0011696,87490.0,87489.0,0.48626664]
[1742821231055,0.0011696,87490.0,87489.0,0.47483664]
[1742821231644,0.0011696,87490.0,87489.0,0.48626664]
[1742821232805,0.0011696,87490.0,87489.0,0.48622664]
[1742821233307,0.0011696,87490.0,87489.0,0.35662664]
[1742821233509,0.2297666,87490.0,87489.0,0.24619664]
[1742821233919,0.0011696,87490.0,87489.0,0.47479664]
[1742821236067,0.0011696,87490.0,87489.0,0.48622664]
[1742821236281,0.0011696,87490.0,87489.0,0.47479664]
[1742821237123,0.0011696,87490.0,87489.0,0.24619664]
[1742821237257,0.0011696,87490.0,87489.0,0.47479664]
[1742821238623,0.0011696,87490.0,87489.0,0.24619664]
[1742821238825,0.2297666,87490.0,87489.0,0.26762188]
[1742821239043,0.0011696,87490.0,87489.0,0.26762188]
[1742821239218,0.0011696,87490.0,87489.0,0.13802188]
[1742821239415,0.0011696,87490.0,87489.0,0.26758188]
[1742821239837,0.0011696,87490.0,87489.0,0.24615664]
[1742821240417,0.2297666,87490.0,87489.0,0.24615664]
[1742821240817,0.31687504,87490.0,87489.0,0.11659664]
[1742821241021,0.31687504,87490.0,87489.0,0.24615664]
[1742821241231,0.31687504,87490.0,87489.0,0.131899]
[1742821241647,0.61687504,87490.0,87489.0,0.131899]
[1742821243312,0.5410227,87490.0,87489.0,0.131899]
[1742821243772,0.5410227,87490.0,87489.0,0.002339]
[1742821243948,0.5410227,87490.0,87489.0,0.131899]
[1742821244759,0.5410227,87490.0,87489.0,0.002339]
[1742821245042,0.5410227,87490.0,87489.0,0.131899]
[1742821249178,0.65528034,87490.0,87489.0,0.131899]
[1742821249536,0.5410227,87490.0,87489.0,0.131899]
[1742821250454,0.5411922,87490.0,87489.0,0.131899]
[1742821252673,0.5411922,87490.0,87489.0,0.002339]
[1742821252894,0.5411922,87490.0,87489.0,0.131899]
[1742821255208,0.5411922,87490.0,87489.0,1e-06]
[1742821255410,0.80508369,87490.0,87489.0,1e-06]
[1742821255656,0.83008369,87490.0,87489.0,1e-06]
[1742821256961,0.83308369,87490.0,87489.0,1e-06]
[1742821257740,0.83508369,87490.0,87489.0,1e-06]
[1742821257952,0.85298344,87490.0,87489.0,1e-06]
[1742821258341,0.85098344,87490.0,87489.0,1e-06]
[1742821258766,0.85298344,87490.0,87489.0,1e-06]
[1742821260947,0.38868495,87490.0,87489.0,1e-06]
[1742821261153,0.2461922,87490.0,87489.0,1e-06]
[1742821261775,0.2401955,87490.0,87489.0,1e-06]
[1742821261950,0.5401955,87490.0,87489.0,1e-06]
[1742821262153,0.5461955,87490.0,87489.0,1e-06]
[1742821262357,0.5421955,87490.0,87489.0,1e-06]
[1742821262780,0.65645314,87490.0,87489.0,1e-06]
[1742821262996,0.66045314,87490.0,87489.0,1e-06]
[1742821263404,0.66045314,87490.0,87465.0,0.02138538]
[1742821263405,0.540084,87469.0,87468.0,0.0484]
[1742821263608,0.540084,87469.0,87468.0,0.16265764]
[1742821263815,0.540084,87469.0,87467.0,0.0753]
[1742821263816,0.011433,87466.0,87465.0,0.02138538]
[1742821264020,0.540095,87465.0,87464.0,0.54396]
[1742821266297,0.540095,87465.0,87464.0,0.54496]
[1742821267255,0.540095,87465.0,87464.0,0.54396]
[1742821267651,0.540095,87465.0,87464.0,0.73901764]
[1742821267652,0.002,87465.0,87464.0,0.73901764]
[1742821267875,0.002,87465.0,87464.0,0.78781764]
[1742821267876,0.230662,87465.0,87464.0,0.78781764]
[1742821268098,0.3,87467.0,87464.0,0.70701764]
[1742821268270,0.228658,87467.0,87465.0,0.19505764]
[1742821268468,0.228641,87474.0,87467.0,0.011432]
[1742821268668,0.228643,87473.0,87470.0,0.277349]
[1742821268876,0.228637,87475.0,87472.0,0.228643]
[1742821269083,0.528637,87475.0,87474.0,0.081]
[1742821269283,0.528637,87475.0,87474.0,0.19525764]
[1742821269483,0.540068,87475.0,87474.0,0.19525764]
[1742821270059,0.541068,87475.0,87474.0,0.19525764]
[1742821270266,0.5696997,87475.0,87474.0,0.19525764]
[1742821271097,0.5716997,87475.0,87474.0,0.19525764]
[1742821271493,0.5686997,87475.0,87474.0,0.19525764]
[1742821271895,0.5706997,87475.0,87474.0,0.19525764]
[1742821272104,0.5686997,87475.0,87474.0,0.19525764]
[1742821273860,0.5686997,87475.0,87474.0,0.19542714]
[1742821274228,0.5686997,87475.0,87474.0,0.0811695]
[1742821276005,0.5696997,87475.0,87474.0,0.0811695]
[1742821278817,0.541068,87475.0,87474.0,0.0811695]
[1742821286231,0.541068,87475.0,87474.0,0.19542714]
[1742821290264,0.541068,87475.0,87474.0,0.0811695]
[1742821291870,0.541068,87475.0,87474.0,0.0001695]
[1742821292210,0.728868,87475.0,87474.0,0.0001695]
[1742821292421,0.84312564,87475.0,87474.0,0.0001695]
[1742821293183,0.84212564,87475.0,87474.0,0.0001695]
[1742821293381,0.65432564,87475.0,87474.0,0.0001695]
[1742821293734,0.78735964,87475.0,87474.0,0.0001695]
[1742821294137,0.75884864,87475.0,87474.0,0.0001695]
[1742821297147,0.65732564,87475.0,87474.0,0.0001695]
[1742821297293,1.30001864,87475.0,87474.0,0.0001695]
[1742821297500,1.25601864,87475.0,87474.0,0.0001695]
[1742821298226,1.30001864,87475.0,87474.0,0.0001695]
[1742821299412,1.31825735,87475.0,87474.0,0.0001695]
[1742821299902,1.27498935,87475.0,87474.0,0.0001695]
[1742821300133,1.06012635,87475.0,87474.0,0.0001695]
[1742821300336,0.83893735,87475.0,87474.0,0.0001695]
[1742821300684,0.79713735,87475.0,87474.0,0.0001695]
[1742821301521,0.79713735,87475.0,87474.0,0.00016899]
[1742821301693,0.56130671,87475.0,87474.0,0.00016899]
[1742821302108,0.5434072,87475.0,87474.0,0.00016899]
[1742821305343,0.56130741,87475.0,87474.0,0.00016899]
[1742821306437,2.27541141,87475.0,87474.0,0.00016899]
[1742821307393,1.79812641,87475.0,87474.0,0.00016899]
[1742821307598,1.91238405,87475.0,87474.0,0.00016899]
[1742821307823,0.67556505,87475.0,87474.0,0.00016899]
[1742821308019,1.22221205,87475.0,87474.0,0.00016899]
[1742821308778,1.22225205,87475.0,87474.0,0.00016899]
[1742821313031,1.21925205,87475.0,87474.0,0.00016899]
[1742821313539,1.22325205,87475.0,87474.0,0.00016899]
[1742821314564,1.22825205,87475.0,87474.0,0.00016899]
[1742821316341,1.21035184,87475.0,87474.0,0.00016899]
[1742821318975,1.80666084,87475.0,87474.0,0.00016899]
[1742821319357,1.82456184,87475.0,87474.0,0.00016899]
[1742821319705,1.71905469,87475.0,87474.0,0.00016899]
[1742821320141,1.42192769,87475.0,87474.0,0.00016899]
[1742821320665,1.02063569,87475.0,87474.0,0.00016899]
[1742821323658,1.02063569,87475.0,87474.0,9.9e-07]
[1742821323810,0.69614669,87475.0,87474.0,9.9e-07]
[1742821325655,0.67824569,87475.0,87474.0,9.9e-07]
[1742821326396,0.67824569,87475.0,87474.0,0.12130099]
[1742821326397,0.5494472,87475.0,87474.0,0.12130099]
[1742821327914,1.5427412,87475.0,87474.0,0.12130099]
[1742821328672,1.57518254,87475.0,87474.0,9.9e-07]
[1742821328901,0.58188854,87475.0,87474.0,9.9e-07]
[1742821332150,0.58688854,87475.0,87474.0,9.9e-07]
[1742821332341,0.58688854,87475.0,87465.0,0.0001696]
[1742821332342,0.540093,87466.0,87465.0,0.0001696]
[1742821332640,1.466386,87466.0,87465.0,0.0001696]
[1742821332848,1.020106,87466.0,87465.0,0.0001696]
[1742821334438,1.03864685,87466.0,87465.0,0.0001696]
[1742821334858,1.04164685,87466.0,87465.0,0.0001696]
[1742821335061,1.11534445,87466.0,87465.0,0.0001696]
[1742821335434,0.540156,87443.0,87429.0,0.03431433]
[1742821335655,0.540156,87443.0,87434.0,0.12948]
[1742821335871,0.540156,87443.0,87439.0,0.0791]
[1742821336872,0.55806222,87443.0,87442.0,0.0004194]
[1742821337829,0.5668363,87443.0,87442.0,0.0004194]
[1742821338024,0.67558721,87443.0,87442.0,0.0004194]
[1742821338483,0.67658721,87443.0,87442.0,0.0004194]
[1742821341562,0.69449335,87443.0,87442.0,0.0004194]
[1742821342145,0.67658721,87443.0,87442.0,0.0004194]
[1742821346285,0.69449349,87443.0,87442.0,0.0004194]
[1742821347061,0.69449349,87443.0,87442.0,0.0004194]
[1742821352129,0.67658721,87443.0,87442.0,0.0004194]
[1742821355076,0.69449348,87443.0,87442.0,0.0004194]
[1742821359802,0.58023584,87443.0,87442.0,0.0004194]
[1742821364862,0.56232957,87443.0,87442.0,0.0004194]
[1742821367175,2.06483457,87443.0,87442.0,0.0004194]
[1742821367710,1.92146719,87443.0,87442.0,0.0004194]
[1742821367919,1.69029219,87443.0,87442.0,0.0004194]
[1742821368127,1.80654983,87443.0,87442.0,0.0004194]
[1742821368592,0.79905083,87443.0,87442.0,0.0004194]
[1742821368791,0.80159383,87443.0,87442.0,0.0004194]
[1742821370824,0.80359383,87443.0,87442.0,0.0004194]
[1742821374265,0.78568721,87443.0,87442.0,0.0004194]
[1742821377421,0.80359368,87443.0,87442.0,0.0004194]
[1742821379542,0.69749368,87443.0,87442.0,0.0004194]
[1742821379945,1.62273768,87443.0,87442.0,0.0004194]
[1742821381052,1.56873668,87443.0,87442.0,0.0004194]
[1742821383211,1.25210068,87443.0,87442.0,0.0004194]
[1742821385275,1.25210068,87443.0,87442.0,4e-07]
[1742821385434,0.69749368,87443.0,87442.0,4e-07]
[1742821386628,0.67958721,87443.0,87442.0,4e-07]
[1742821389757,0.69749399,87443.0,87442.0,4e-07]
[1742821391755,0.540164,87440.0,87439.0,4e-07]
[1742821391947,0.65442164,87440.0,87439.0,0.00012381]
[1742821392873,1.32888164,87440.0,87439.0,0.00012381]
[1742821393290,1.32888164,87440.0,87436.0,8.1e-07]
[1742821393291,0.540172,87437.0,87436.0,8.1e-07]
[1742821394464,0.541172,87437.0,87436.0,8.1e-07]
[1742821395827,0.542172,87437.0,87436.0,8.1e-07]
[1742821396030,0.62798343,87437.0,87436.0,8.1e-07]
[1742821405628,0.62798343,87437.0,87436.0,5.1e-07]
[1742821405743,0.62832283,87437.0,87436.0,5.1e-07]
[1742821411526,0.540246,87410.0,87405.0,0.54436]
[1742821411727,0.540246,87410.0,87409.0,0.00021081]
[1742821411907,0.65450364,87410.0,87409.0,0.00021081]
[1742821412385,1.12215464,87410.0,87409.0,0.00021081]
[1742821413626,0.540259,87405.0,87404.0,0.02298051]
[1742821413821,0.540259,87405.0,87404.0,0.02339259]
[1742821414026,0.66654015,87405.0,87404.0,0.02339259]
[1742821416038,0.66591113,87405.0,87404.0,0.02339259]
[1742821416804,0.66591113,87405.0,87404.0,0.09929259]
[1742821418795,0.66591113,87405.0,87404.0,0.09946229]
[1742821419818,0.55165349,87405.0,87404.0,0.09946229]
[1742821420178,0.24084251,87405.0,87404.0,0.21371993]
[1742821420441,0.25228251,87405.0,87404.0,0.21371993]
[1742821420643,0.01202351,87405.0,87404.0,0.21371993]
[1742821420807,0.01202351,87405.0,87404.0,0.44254193]
[1742821421013,0.528819,87406.0,87405.0,0.1271]
[1742821421196,0.540259,87406.0,87405.0,0.24135764]
[1742821422093,0.55214889,87406.0,87405.0,0.2565]
[1742821422320,0.66640653,87406.0,87405.0,0.2565]
[1742821422743,0.66640653,87406.0,87405.0,0.1271]
[1742821427453,0.68432005,87406.0,87405.0,0.1271]
[1742821429646,0.57006241,87406.0,87405.0,0.1271]
[1742821430794,0.57006241,87406.0,87405.0,0.1272697]
[1742821442334,0.3,87405.0,87390.0,3.2e-07]
[1742821442568,0.528866,87387.0,87386.0,9.2e-07]
[1742821442770,0.528866,87387.0,87353.0,0.4179]
[1742821442771,0.540339,87376.0,87375.0,5e-07]
[1742821443185,0.311444,87376.0,87375.0,0.11425814]
[1742821443385,0.540339,87376.0,87375.0,0.11425814]
[1742821444206,0.540339,87376.0,87375.0,5e-07]
[1742821444411,0.54075059,87376.0,87375.0,5e-07]
[1742821444609,0.65500823,87376.0,87375.0,5e-07]
[1742821445463,0.54075059,87376.0,87375.0,5e-07]
[1742821445864,0.55867005,87376.0,87375.0,5e-07]
[1742821447709,0.30041159,87376.0,87375.0,0.11425814]
[1742821447863,0.30041159,87376.0,87375.0,0.48396014]
[1742821448068,0.30041159,87376.0,87375.0,0.47251614]
[1742821448263,0.00041159,87376.0,87375.0,0.24361814]
[1742821449090,0.00041159,87376.0,87375.0,0.47251614]
[1742821449555,0.00041159,87376.0,87375.0,0.48396014]
[1742821451630,0.00041159,87376.0,87375.0,0.35460014]
[1742821451830,0.00041159,87376.0,87375.0,0.48396014]
[1742821453033,0.00041159,87376.0,87375.0,0.60876014]
[1742821453575,0.00041159,87376.0,87375.0,0.63131371]
[1742821454985,0.00041159,87376.0,87375.0,0.60876014]
[1742821456949,0.00141159,87376.0,87375.0,0.60876014]
[1742821458402,0.00041159,87376.0,87375.0,0.60876014]
[1742821459085,0.26482405,87376.0,87375.0,0.16365814]
[1742821459283,0.26482405,87376.0,87375.0,0.11425814]
[1742821459484,0.56482405,87376.0,87375.0,0.11425814]
[1742821461365,0.56482405,87376.0,87375.0,5e-07]
[1742821463325,0.56682405,87376.0,87375.0,5e-07]
[1742821466422,0.54275059,87376.0,87375.0,0.11425814]
[1742821467637,0.54309019,87376.0,87375.0,0.11425814]
[1742821471344,0.54309019,87376.0,87375.0,5e-07]
[1742821483721,0.54209019,87376.0,87375.0,5e-07]
[1742821483876,0.65634783,87376.0,87375.0,5e-07]
[1742821484287,0.65634783,87376.0,87367.0,0.00030297]
[1742821484288,0.540361,87368.0,87367.0,0.00026347]
[1742821484489,1.5813,87368.0,87367.0,0.00026347]
[1742821485065,0.540397,87355.0,87354.0,0.0134566]
[1742821485293,0.89156,87355.0,87354.0,0.0134566]
[1742821485507,0.540397,87355.0,87354.0,0.0134566]
[1742821485703,0.55832046,87355.0,87354.0,0.0134566]
[1742821486748,0.56032046,87355.0,87354.0,0.0134566]
[1742821487222,0.57242318,87355.0,87354.0,0.0135614]
[1742821488378,0.57542318,87355.0,87354.0,0.0135614]
[1742821488601,0.68968082,87355.0,87354.0,0.0135614]
[1742821488817,0.69847738,87355.0,87354.0,0.0135614]
[1742821491475,0.69777738,87355.0,87354.0,0.0135614]
[1742821492418,0.69577738,87355.0,87354.0,0.0135614]
[1742821492859,0.69877738,87355.0,87354.0,0.0135614]
[1742821493951,0.69577738,87355.0,87354.0,0.0135614]
[1742821494567,0.69977738,87355.0,87354.0,0.0135614]
[1742821494972,1.02100938,87355.0,87354.0,0.0135614]
[1742821495309,0.82478238,87355.0,87354.0,0.0135614]
[1742821495484,0.80180238,87355.0,87354.0,0.0135614]
[1742821495722,0.58251974,87355.0,87354.0,0.0135614]
[1742821495929,0.56759628,87355.0,87354.0,0.0135614]
[1742821496355,0.25879972,87355.0,87354.0,0.12781904]
[1742821496484,0.03054972,87355.0,87354.0,0.12781904]
[1742821496689,0.25949972,87355.0,87354.0,0.12781904]
[1742821496887,0.30622885,87355.0,87354.0,0.1429214]
[1742821497102,0.30622885,87355.0,87354.0,0.25717904]
[1742821497103,0.25649972,87355.0,87354.0,0.25717904]
[1742821497297,0.55249972,87355.0,87354.0,0.25717904]
[1742821497541,0.55549972,87355.0,87354.0,0.25717904]
[1742821497746,0.55949972,87355.0,87354.0,0.25717904]
[1742821498174,0.55549972,87355.0,87354.0,0.25717904]
[1742821498534,0.55649972,87355.0,87354.0,0.25717904]
[1742821498730,0.55349972,87355.0,87354.0,0.25717904]
[1742821499131,0.55449972,87355.0,87354.0,0.25717904]
[1742821500202,0.31410272,87355.0,87354.0,0.25717904]
[1742821500393,0.002,87355.0,87354.0,0.61867904]
[1742821500994,0.001,87355.0,87354.0,0.61867904]
[1742821502600,0.240397,87355.0,87354.0,0.24891904]
[1742821502802,0.26519301,87355.0,87354.0,0.37827904]
[1742821503619,0.228946,87357.0,87354.0,0.37827904]
[1742821503826,0.22895,87356.0,87355.0,0.11425764]
[1742821504045,0.528937,87360.0,87357.0,0.228943]
[1742821504243,0.228941,87359.0,87358.0,0.11425764]
[1742821505183,0.240388,87359.0,87358.0,0.11456724]
[1742821505793,0.242388,87359.0,87358.0,0.11456724]
[1742821505993,0.34886207,87359.0,87358.0,0.11456724]
[1742821506371,0.23094,87359.0,87358.0,0.11456724]
[1742821507897,0.002,87359.0,87358.0,0.11456724]
[1742821508184,0.002,87359.0,87358.0,0.35495624]
[1742821508624,0.002,87359.0,87358.0,0.33495624]
[1742821509553,0.002,87359.0,87358.0,0.34693069]
[1742821509771,0.002,87359.0,87358.0,0.11798869]
[1742821510252,0.002,87359.0,87358.0,0.34693069]
[1742821510478,0.002,87359.0,87358.0,0.11798869]
[1742821510713,0.002,87359.0,87358.0,0.66274869]
[1742821510909,0.002,87359.0,87358.0,0.89169069]
[1742821511033,0.002,87359.0,87358.0,1.02101069]
[1742821511462,0.002,87359.0,87358.0,1.03245769]
[1742821511662,0.002,87359.0,87358.0,1.16215769]
[1742821512060,0.002,87359.0,87358.0,1.17669854]
[1742821513075,2e-07,87367.0,87366.0,0.37970885]
[1742821513304,2e-07,87367.0,87366.0,0.92402025]
[1742821514009,0.0003396,87376.0,87366.0,0.92402025]
[1742821514219,3.9e-07,87376.0,87375.0,0.49284049]
[1742821514422,3.9e-07,87376.0,87375.0,0.62216049]
[1742821514651,3.9e-07,87376.0,87375.0,0.73641813]
[1742821515439,3.9e-07,87376.0,87375.0,0.73672773]
[1742821516615,0.00100039,87376.0,87375.0,0.73672773]
[1742821517243,0.00100039,87376.0,87375.0,0.26131509]
[1742821517410,0.00100039,87376.0,87375.0,0.39363509]
[1742821518027,0.00100039,87376.0,87375.0,0.62253309]
[1742821518247,0.24133939,87376.0,87375.0,0.26693509]
[1742821518559,0.24233939,87376.0,87375.0,0.24388724]
[1742821518765,0.61578443,87376.0,87375.0,0.11456724]
[1742821518934,0.62785045,87376.0,87375.0,0.24384724]
[1742821519136,0.62685045,87376.0,87375.0,0.24384724]
[1742821519945,0.61540645,87376.0,87375.0,0.24384724]
[1742821520422,0.54096141,87376.0,87375.0,0.24384724]
[1742821520899,0.54396141,87376.0,87375.0,0.24384724]
[1742821521068,0.55540541,87376.0,87375.0,0.24384724]
[1742821522037,0.54396141,87376.0,87375.0,0.24384724]
[1742821522648,0.54396141,87376.0,87375.0,0.11456724]
[1742821522893,0.55540541,87376.0,87375.0,0.24384724]
[1742821523977,0.66966305,87376.0,87375.0,0.24384724]
[1742821524389,0.55540541,87376.0,87375.0,0.24384724]
[1742821526947,0.55540541,87376.0,87375.0,0.24401684]
[1742821529394,0.55399711,87376.0,87375.0,0.24401684]
[1742821529950,0.5511778,87376.0,87375.0,0.24401684]
[1742821530582,0.54981685,87376.0,87375.0,0.24401684]
[1742821531247,0.53309662,87376.0,87375.0,0.24401684]
[1742821533347,0.64735426,87376.0,87375.0,0.0004792]
[1742821533541,0.72575426,87376.0,87375.0,0.0004792]
[1742821535195,0.92629226,87376.0,87375.0,0.0004792]
[1742821536693,0.97229226,87376.0,87375.0,0.0004792]
[1742821537530,0.96929226,87376.0,87375.0,0.0004792]
[1742821537738,0.97429226,87376.0,87375.0,0.0004792]
[1742821537965,0.78712562,87376.0,87375.0,0.0004792]
[1742821538145,0.66029582,87376.0,87375.0,0.0004792]
[1742821538357,0.53843582,87376.0,87375.0,0.0004792]
[1742821546336,0.67859382,87376.0,87375.0,0.0004792]
[1742821546532,0.79285146,87376.0,87375.0,0.0004792]
[1742821548763,0.67859382,87376.0,87375.0,0.0004792]
[1742821550242,0.53843582,87376.0,87375.0,0.0004792]
[1742821550434,1.14580082,87376.0,87375.0,0.0004792]
[1742821550841,0.92854982,87376.0,87375.0,0.0004792]
[1742821551021,0.78687082,87376.0,87375.0,0.0004792]
[1742821551251,0.90112846,87376.0,87375.0,0.0004792]
[1742821551449,0.71932582,87376.0,87375.0,0.0004792]
[1742821551647,0.53843582,87376.0,87375.0,0.0004792]
[1742821551846,0.68658982,87376.0,87375.0,0.0004792]
[1742821552357,0.64748482,87376.0,87375.0,0.0004792]
[1742821552560,0.53843582,87376.0,87375.0,0.0004792]
[1742821552758,0.81924846,87376.0,87375.0,0.0004792]
[1742821552961,0.53843582,87376.0,87375.0,0.0004792]
[1742821554189,0.53843582,87376.0,87375.0,0.11473684]
[1742821555849,0.53843582,87376.0,87375.0,0.0004792]
[1742821557151,0.55635538,87376.0,87375.0,0.0004792]
[1742821560653,0.33832478,87376.0,87375.0,0.11473684]
[1742821560856,0.57866378,87376.0,87375.0,0.23993684]
[1742821562520,0.57966378,87376.0,87375.0,0.23993684]
[1742821564847,0.56821978,87376.0,87375.0,0.23993684]
[1742821565502,0.64291647,87376.0,87375.0,0.23993684]
[1742821565710,0.64291647,87376.0,87375.0,0.16273684]
[1742821566306,0.57966378,87376.0,87375.0,0.16273684]
[1742821567098,0.56174422,87376.0,87375.0,0.16273684]
[1742821567279,0.56174422,87376.0,87375.0,0.11473684]
[1742821572338,0.56174422,87376.0,87375.0,0.24405684]
[1742821574232,0.3093392,87376.0,87375.0,0.24405684]
[1742821574440,0.0093392,87376.0,87375.0,0.60969884]
[1742821575271,0.0093392,87376.0,87375.0,0.50475646]
[1742821575479,0.0043392,87376.0,87375.0,0.43734714]
[1742821575675,0.0013392,87376.0,87375.0,0.43734714]
[1742821575893,0.2466782,87376.0,87375.0,0.0791]
[1742821576112,0.011445,87370.0,87366.0,0.0804]
[1742821576324,0.0033392,87376.0,87370.0,0.011445]
[1742821576536,0.0033392,87376.0,87371.0,0.47268564]
[1742821576750,0.0033392,87376.0,87375.0,0.319442]
[1742821576943,0.0063392,87376.0,87375.0,0.43369964]
[1742821577638,0.0043392,87376.0,87375.0,0.43369964]
[1742821577830,0.0053392,87376.0,87375.0,0.43369964]
[1742821578040,0.0053392,87376.0,87375.0,0.40090128]
[1742821578445,0.0053392,87376.0,87375.0,0.44830128]
[1742821578651,0.0053392,87376.0,87375.0,0.40572489]
[1742821578891,0.0023392,87376.0,87375.0,0.40572489]
[1742821579097,0.0053392,87376.0,87375.0,0.40572489]
[1742821579306,0.0053392,87376.0,87375.0,0.38322659]
[1742821579701,0.0023392,87376.0,87375.0,0.38322659]
[1742821580491,0.0013392,87376.0,87375.0,0.38322659]
[1742821581103,0.0043392,87376.0,87375.0,0.38322659]
[1742821583727,0.0043392,87376.0,87375.0,0.38339619]
[1742821586969,0.0043392,87376.0,87375.0,0.51219468]
[1742821587535,0.0043392,87376.0,87375.0,0.39793704]
[1742821587733,0.0043392,87376.0,87375.0,0.4098588]
[1742821587912,0.0013392,87376.0,87375.0,0.4098588]
[1742821588329,0.0023392,87376.0,87375.0,0.4098588]
[1742821589752,0.0023392,87376.0,87375.0,0.39793704]
[1742821590391,0.0013392,87376.0,87375.0,0.81683704]
[1742821592295,0.0013392,87376.0,87375.0,0.93109468]
[1742821593508,2e-07,87376.0,87375.0,1.25609468]
[1742821595217,0.0003394,87376.0,87375.0,1.25609468]
[1742821595424,0.0003394,87376.0,87375.0,1.38533468]
[1742821595839,0.0003394,87376.0,87375.0,1.38433468]
[1742821596899,0.0003394,87376.0,87375.0,1.27007704]
[1742821597306,0.0003394,87376.0,87375.0,1.27307704]
[1742821597506,0.0003394,87376.0,87375.0,1.27875057]
[1742821599067,0.0003394,87376.0,87375.0,0.80996972]
[1742821599272,0.0003394,87376.0,87375.0,0.91090277]
[1742821601146,0.0003394,87376.0,87375.0,0.78134277]
[1742821601348,0.0003394,87376.0,87375.0,0.91086277]
[1742821601649,0.0003394,87376.0,87375.0,0.90686277]
[1742821601824,0.0003394,87376.0,87375.0,0.91086277]
[1742821602236,0.0003394,87376.0,87375.0,0.49296277]
[1742821606846,0.0003394,87376.0,87375.0,0.36344277]
[1742821607052,0.0003394,87376.0,87375.0,0.49428277]
[1742821608371,0.0003394,87376.0,87375.0,0.49532277]
[1742821610228,0.02163644,87376.0,87375.0,0.49532277]
[1742821612271,0.02163644,87376.0,87375.0,0.25498077]
[1742821612272,0.27815585,87376.0,87375.0,0.25498077]
[1742821613406,0.27815585,87376.0,87375.0,0.25098077]
[1742821613548,0.27815585,87376.0,87375.0,0.25198077]
[1742821613748,0.03881685,87376.0,87375.0,0.25198077]
[1742821613944,0.02263644,87376.0,87375.0,0.26342477]
[1742821614169,0.02263644,87376.0,87375.0,0.49232277]
[1742821618187,0.02263644,87376.0,87375.0,1.03692277]
[1742821619980,0.02263644,87376.0,87375.0,1.02547877]
[1742821620824,0.09814368,87376.0,87375.0,1.02547877]
[1742821621022,0.02263644,87376.0,87375.0,1.02547877]
[1742821622251,0.02263644,87376.0,87375.0,0.79658077]
[1742821622449,0.25153144,87376.0,87375.0,0.79658077]
[1742821622703,0.02263644,87376.0,87375.0,0.79658077]
[1742821622914,0.25153144,87376.0,87375.0,0.79658077]
[1742821623126,0.30529588,87376.0,87375.0,0.79658077]
[1742821624341,0.31673988,87376.0,87375.0,0.00584313]
[1742821624604,0.66333988,87376.0,87375.0,0.0011696]
[1742821624813,0.74423988,87376.0,87375.0,0.0011696]
[1742821625014,1.16906388,87376.0,87375.0,0.0011696]
[1742821625187,1.15362888,87376.0,87375.0,0.0011696]
[1742821625607,0.74423988,87376.0,87375.0,0.0011696]
[1742821625794,1.14674888,87376.0,87375.0,0.0011696]
[1742821626028,1.11240784,87376.0,87375.0,0.0011696]
[1742821626208,1.11140784,87376.0,87375.0,0.0011696]
[1742821626436,1.11140784,87376.0,87375.0,6e-07]
[1742821626677,0.72494284,87376.0,87375.0,6e-07]
[1742821627311,0.74286307,87376.0,87375.0,6e-07]
[1742821627463,0.73986307,87376.0,87375.0,6e-07]
[1742821627873,0.74486307,87376.0,87375.0,6e-07]
[1742821629672,0.85912071,87376.0,87375.0,6e-07]
[1742821630275,0.85512071,87376.0,87375.0,6e-07]
[1742821630518,0.85412071,87376.0,87375.0,6e-07]
[1742821630709,0.85912071,87376.0,87375.0,6e-07]
[1742821630914,0.86212071,87376.0,87375.0,6e-07]
[1742821631727,1.27032071,87376.0,87375.0,6e-07]
[1742821634801,1.25240048,87376.0,87375.0,6e-07]
[1742821637882,1.27032266,87376.0,87375.0,6e-07]
[1742821639692,0.540392,87357.0,87356.0,0.13432]
[1742821640025,0.5967204,87357.0,87356.0,0.14097641]
[1742821640193,0.5967204,87357.0,87356.0,0.13432]
[1742821640395,0.540397,87355.0,87354.0,0.0132518]
[1742821643383,0.541397,87355.0,87354.0,0.0132518]
[1742821643585,0.545397,87355.0,87354.0,0.0132518]
[1742821643867,0.65965464,87355.0,87354.0,0.0132518]
[1742821644645,0.66846258,87355.0,87354.0,0.0132518]
[1742821645444,0.55420494,87355.0,87354.0,0.0132518]
[1742821647815,0.57212856,87355.0,87354.0,0.0132518]
[1742821652951,0.55420494,87355.0,87354.0,0.0132518]
[1742821661399,0.545397,87355.0,87354.0,0.0132518]
[1742821661868,0.228987,87342.0,87339.0,0.10334989]
[1742821662074,0.228987,87342.0,87340.0,0.24729764]
[1742821662203,0.228987,87341.0,87340.0,0.25180544]
[1742821662407,0.311447,87353.0,87346.0,0.011448]
[1742821662631,0.240417,87348.0,87347.0,0.00449818]
[1742821662832,0.240417,87348.0,87346.0,0.11425764]
[1742821662833,0.240419,87347.0,87346.0,0.11425764]
[1742821663197,0.240419,87347.0,87346.0,0.11916879]
[1742821663968,0.01169574,87347.0,87346.0,0.11916879]
[1742821664109,0.01169574,87347.0,87346.0,0.34814279]
[1742821664309,0.002,87348.0,87347.0,0.228971]
[1742821664511,0.002,87348.0,87347.0,0.34322864]
[1742821664715,0.002,87348.0,87347.0,0.34772682]
[1742821664919,0.002,87348.0,87347.0,0.47182682]
[1742821665788,0.002,87348.0,87347.0,0.48327482]
[1742821665971,0.01181174,87350.0,87348.0,0.228967]